Cogmind - Beta 13 @@@ ROGUE MODE // 2024.03.30 @ 18:43:39 Player: firstiteration Result: Destroyed by G-34 Mercenary with Small Laser Performance ------------- Evolutions (0) 0 Regions Visited (4) 800 Robots Destroyed (30) 150 Value Destroyed (500) 500 Prototype IDs (3) 60 Alien Tech Used (0) 0 Bonus (300) 300 TOTAL SCORE: 1810 Bonus ------- Aligned with FarCom 300 Cogmind --------- Core Integrity 0/250 Matter 160/300 Energy 248/280 System Corruption 0% Temperature Critical (519) Movement Treading (160) Location -9/Mines Parts ------- > --- POWER (1) -------- Heavy Ion Engine > --- PROPULSION (2) --- Light Treads Light Treads > --- UTILITY (2) ------ Large Storage Unit Signal Interpreter > --- WEAPON (2) ------- Improved Light Cannon Improved Light Cannon > --- INVENTORY (15) --- Heavy Ion Engine Heavy Ion Engine Small Storage Unit Structural Scanner Visual Processing Unit Sensor Array Beam Rifle Beam Rifle Improved Light Cannon Improved Light Cannon Peak State ------------ > --- POWER ------------ Heavy Ion Engine > --- PROPULSION ------- Light Treads Light Treads > --- UTILITY ---------- Large Storage Unit Signal Interpreter > --- WEAPON ----------- Beam Rifle Beam Rifle > --- INVENTORY -------- Heavy Ion Engine Heavy Ion Engine Light Treads Light Treads Small Storage Unit Structural Scanner Beam Rifle Beam Rifle Improved Light Cannon Improved Light Cannon Improved Light Cannon [Rating: 13] Favorites ----------- Power Heavy Ion Engine Engine Heavy Ion Engine Propulsion Light Treads Treads Light Treads Leg Aluminum Leg Utility Large Storage Unit Device Structural Scanner Storage Large Storage Unit Processor Signal Interpreter Weapon Beam Rifle Energy Gun Beam Rifle Ballistic Gun Assault Rifle Ballistic Cannon Improved Light Cannon Launcher Grenade Launcher Build | -11 -10 -10 -10 -9 ------- Run | Yrd Mat Min Exi Min Slots Evolved . | . . . . . Power . | . . . . . Propulsion . | . . . . . Utility . | . . . . . Weapon . | . . . . . Parts Attached 27 | 7 16 . . 4 Power 3 | 1 2 . . . Engine 3 | 1 2 . . . Core . | . . . . . Reactor . | . . . . . Propulsion 9 | 2 5 . . 2 Treads 7 | 2 3 . . 2 Leg 2 | . 2 . . . Wheel . | . . . . . Hover . | . . . . . Flight . | . . . . . Utility 7 | 2 5 . . . Device 3 | 1 2 . . . Storage 2 | 1 1 . . . Processor 2 | . 2 . . . Hackware . | . . . . . Protection . | . . . . . Artifact . | . . . . . Weapon 8 | 2 4 . . 2 Energy Gun 3 | 1 2 . . . Energy Cannon . | . . . . . Ballistic Gun 1 | 1 . . . . Ballistic Cannon 2 | . . . . 2 Launcher 2 | . 2 . . . Special Weapon . | . . . . . Impact Weapon . | . . . . . Slashing Weapon . | . . . . . Piercing Weapon . | . . . . . Special Melee Weapon . | . . . . . Unidentified Prototypes . | . . . . . Parts Lost 3 | . . . . 3 Power . | . . . . . Propulsion 2 | . . . . 2 Utility . | . . . . . Weapon 1 | . . . . 1 Highest Loss Streak 3 | . . . . 3 To Critical Strikes . | . . . . . Average Slot Usage (%) 99 | . 99 100 100 99 Engine 14 | . 14 14 14 14 Treads 27 | . 26 28 28 28 Device 3 | . 8 . . . Storage 14 | . 14 14 14 14 Processor 10 | . 5 14 14 14 Energy Gun 23 | . 16 28 28 24 Launcher 4 | . 11 . . . Naked Turns . | . . . . . Heaviest Build 34 | 12 34 34 34 34 Greatest Support 40 | 40 40 40 40 40 Greatest Overweight (x) 1 | 1 . . . . Average Overweight (x) . | . . . . . Largest Inventory Capacity 15 | 8 15 15 15 15 Average Capacity 13 | 7 12 15 15 15 Most Carried 15 | 7 15 14 14 14 Average Carried 11 | 5 8 14 14 13 Final Capacity 15 | 8 15 15 15 15 Final Carried 14 | 6 14 14 14 10 Class Distribution -------------------- 100% | Mutant Dominant Class ---------------- Mutant | -10/Materials Mutant | -10/Mines Mutant | -10/Exiles Mutant | -9/Mines Resources | -11 -10 -10 -10 -9 ----------- Run | Yrd Mat Min Exi Min Matter Collected 584 | 294 290 . . . Remotely . | . . . . . Salvage Created 575 | 111 293 120 . 51 Parts 47 | 8 26 11 . 2 Haulers Intercepted . | . . . . . Recyclers Shooed 1 | . . 1 . . Parts Field Recycled . | . . . . . Retrieved Matter . | . . . . . Parts Self-Destructed . | . . . . . Prevented . | . . . . . Kills | -11 -10 -10 -10 -9 ------- Run | Yrd Mat Min Exi Min Combat Hostiles Destroyed 19 | . 9 8 . 2 Guns 10 | . 2 8 . . Cannons 2 | . . . . 2 AOE 7 | . 7 . . . Classes Destroyed 8 | 2 5 . . 1 Worker 3 | . 2 1 . . Builder 1 | . 1 . . . Tunneler 2 | 2 . . . . Recycler 2 | 1 1 . . . Watcher 3 | . 3 . . . Swarmer 11 | . 3 8 . . Grunt 7 | . 6 . . 1 Duelist 1 | . . . . 1 Best Kill Streak 5 | 1 5 4 . 2 Combat Bots Only 3 | . 3 3 . 2 Max Kills in Single Turn 3 | 1 3 2 . 1 Gunslinging . | . . . . . Exploded 3 | . 3 . . . Melee . | . . . . . Uniques/NPCs Destroyed . | . . . . . Combat | -11 -10 -10 -10 -9 -------- Run | Yrd Mat Min Exi Min Hostile Shots Fired 123 | . 25 50 . 48 Missed 28 | . 6 13 . 9 Damage Taken 1130 | . 282 292 . 556 Core 261 | . 40 34 . 187 Absorbed by Shields . | . . . . . Core Remaining (%) 100 | 100 . . . . Volleys Fired 65 | 8 22 17 . 18 Largest 2 | 2 2 2 . 2 Hottest 112 | 60 112 112 . 112 Shots Fired 125 | 16 43 34 . 32 Gun 87 | 16 30 34 . 7 Cannon 25 | . . . . 25 Launcher 13 | . 13 . . . Special . | . . . . . Kinetic 33 | 8 . . . 25 Thermal 79 | 8 30 34 . 7 Explosive 13 | . 13 . . . Electromagnetic . | . . . . . Robot Hit Streak 8 | 4 8 5 . 4 Robot Miss Streak 7 | 3 4 7 . 3 Penetration Max . | . . . . . Secondary Targets 3 | . 1 2 . . Max Gunslinging Chain 1 | . 1 1 . . Shots Hit Robots 62 | 8 25 14 . 15 Core Hits 39 | 4 23 9 . 3 Critical Kills . | . . . . . Critical Parts Destroyed . | . . . . . Critical Strikes 4 | . . 1 . 3 Burn 2 | . . 1 . 1 Blast 2 | . . . . 2 Melee Attacks . | . . . . . Impact . | . . . . . Slashing . | . . . . . Piercing . | . . . . . Sneak Attacks . | . . . . . Combat Hostiles . | . . . . . Follow-up Attacks . | . . . . . Damage Inflicted 1823 | 94 1180 234 . 315 Guns 606 | 94 223 231 . 58 Cannons 257 | . . . . 257 Explosions 957 | . 957 . . . Melee . | . . . . . Ramming 3 | . . 3 . . Kinetic 319 | 62 . . . 257 Thermal 544 | 32 223 231 . 58 Explosive 957 | . 957 . . . Electromagnetic . | . . . . . Impact . | . . . . . Slashing . | . . . . . Piercing . | . . . . . Highest Corruption . | . . . . . Average Corruption . | . . . . . Corruption Purged . | . . . . . Corruption Blocked . | . . . . . Overload Shots . | . . . . . Overflow Damage 30 | . 30 . . . Projectiles . | . . . . . Explosions 30 | . 30 . . . Melee . | . . . . . Knockbacks 1 | . . . . 1 Impact . | . . . . . Kinetic 1 | . . . . 1 Secondary . | . . . . . Self-Inflicted Damage 63 | . 63 . . . Shots 2 | . 2 . . . Rammed 1 | . . 1 . . Targets Rammed 1 | . . 1 . . Kicked . | . . . . . Crushed . | . . . . . Highest Temperature 513 | . 402 307 . 513 Average Temperature 155 | . 106 137 . 276 Received Heat Transfer 309 | . 111 . . 198 Effects 6 | . . 1 . 5 Energy Bleed 2 | . . 1 . 1 Interference 3 | . . . . 3 Damage (minor) 1 | . . . . 1 Siege Activations . | . . . . . Robots Corrupted . | . . . . . Combat Hostiles . | . . . . . Parts Fried . | . . . . . Impact Corruptions . | . . . . . Robots Melted . | . . . . . Combat Hostiles . | . . . . . Parts Melted 3 | . 1 2 . . Heat Transferred 1496 | 75 533 666 . 222 Parts Sabotaged . | . . . . . Parts Stolen . | . . . . . Parts Stripped . | . . . . . Power Chain Reactions . | . . . . . Alert | -11 -10 -10 -10 -9 ------- Run | Yrd Mat Min Exi Min Peak Influence 201 | 15 172 201 . 54 Initial 26 | . 9 26 . . Average 47 | 7 44 109 . 3 Maximum Alert Level 1 | . . 1 . . Low Security (%) 99 | 100 100 97 . 100 Level 1 . | . . 2 . . Level 2 . | . . . . . Level 3 . | . . . . . Level 4 . | . . . . . Level 5 . | . . . . . High Security . | . . . . . Max Security . | . . . . . Squads Dispatched . | . . . . . Investigation . | . . . . . Extermination . | . . . . . Reinforcement . | . . . . . Assault . | . . . . . Garrison . | . . . . . Intercept . | . . . . . Searches Triggered . | . . . . . Construction Impeded . | . . . . . Haulers Reinforced . | . . . . . Active Scanning Responses . | . . . . . Cargo Convoy Interrupts . | . . . . . Stealth | -11 -10 -10 -10 -9 --------- Run | Yrd Mat Min Exi Min Distress Signals 1 | . 1 . . . Communications Jammed . | . . . . . Distress Signals . | . . . . . Times Spotted 27 | . 15 9 . 3 Peak Tracking Total 4 | . 4 3 . 3 Tactical Retreats . | . . . . . Traps | -11 -10 -10 -10 -9 ------- Run | Yrd Mat Min Exi Min Traps Triggered 2 | . 2 . . . Indirectly . | . . . . . Trap Hack Attempts . | . . . . . Triggered . | . . . . . Disarmed . | . . . . . Reprogrammed . | . . . . . Reused . | . . . . . Traps Extracted . | . . . . . Installed . | . . . . . Triggered . | . . . . . Machines | -11 -10 -10 -10 -9 ---------- Run | Yrd Mat Min Exi Min Machines Disabled 2 | . 1 1 . . Max in Single Turn 1 | . 1 1 . . Machines Repaired . | . . . . . Machines Dismantled . | . . . . . Machines Sabotaged . | . . . . . Overloaded Fab Kills . | . . . . . Hacking | -11 -10 -10 -10 -9 --------- Run | Yrd Mat Min Exi Min Machines Accessed 6 | . 3 1 2 . Terminals 4 | . 3 1 . . Fabricators . | . . . . . Repair Stations . | . . . . . Recycling Units . | . . . . . Scanalyzers . | . . . . . Garrison Access . | . . . . . Total Hacks 42 | . 5 5 32 . Successful 38 | . 3 3 32 . Failed 4 | . 2 2 . . Catastrophic 3 | . 2 1 . . Database Lockouts . | . . . . . Manual . | . . . . . Terminals 10 | . 5 5 . . Fabricators . | . . . . . Repair Stations . | . . . . . Recycling Units . | . . . . . Scanalyzers . | . . . . . Garrison Access . | . . . . . Terminal Hacks 38 | . 3 3 32 . Record 33 | . . 1 32 . Prototype ID Bank 1 | . 1 . . . Alert Level 1 | . 1 . . . Unreport Threat 1 | . 1 . . . Investigation Status 1 | . . 1 . . Zone Layout 1 | . . 1 . . Fabricator Hacks . | . . . . . Repair Station Hacks . | . . . . . Recycling Unit Hacks . | . . . . . Scanalyzer . | . . . . . Garrison Access Hacks . | . . . . . Unauthorized Hacks . | . . . . . Terminals . | . . . . . Fabricators . | . . . . . Repair Stations . | . . . . . Recycling Units . | . . . . . Scanalyzers . | . . . . . Garrison Access . | . . . . . Data Cores Recovered . | . . . . . Used . | . . . . . Hacking Detections 4 | . 3 1 . . Full Trace Events . | . . . . . Feedback Events . | . . . . . Feedback Blocked . | . . . . . Robot Schematics Acquired . | . . . . . Robots Built . | . . . . . Authchips . | . . . . . Time . | . . . . . Total Robot Build Rating . | . . . . . Part Schematics Acquired . | . . . . . Parts Built . | . . . . . Authchips . | . . . . . Time . | . . . . . Total Part Build Rating . | . . . . . Parts Repaired . | . . . . . Time . | . . . . . Parts Recycled . | . . . . . Recycled Matter . | . . . . . Retrieved Matter . | . . . . . Retrieved Components . | . . . . . Parts Scanalyzed . | . . . . . Part Schematics Acquired . | . . . . . Parts Damaged . | . . . . . Bothacking | -11 -10 -10 -10 -9 ------------ Run | Yrd Mat Min Exi Min Used RIF Installer . | . . . . . Robots Hacked . | . . . . . Non-combat . | . . . . . Combat . | . . . . . Robot Hacks Applied . | . . . . . Relay Couplers Released . | . . . . . Fabnet Peak Effective % . | . . . . . Robots Rewired . | . . . . . Allies Hacked . | . . . . . Hacks Repelled . | . . . . . Allies | -11 -10 -10 -10 -9 -------- Run | Yrd Mat Min Exi Min Total Allies . | . . . . . Largest Group . | . . . . . Highest-Rated Group . | . . . . . Highest-Rated Ally . | . . . . . Total Orders . | . . . . . Ally Attacks . | . . . . . Total Damage . | . . . . . Kills . | . . . . . Allies Corrupted . | . . . . . Allies Melted . | . . . . . Intel | -11 -10 -10 -10 -9 ------- Run | Yrd Mat Min Exi Min Robot Analysis Total . | . . . . . Derelict Logs Recovered 1 | . . . . 1 Drone Launches . | . . . . . Drone Recoveries . | . . . . . Exploration | -11 -10 -10 -10 -9 ------------- Run | Yrd Mat Min Exi Min Turns Passed 2765 | 262 942 456 738 367 Spaces Moved 1572 | 150 518 250 461 193 Core 22 | 22 . . . . Treads 1518 | 128 486 250 461 193 Legs 32 | . 32 . . . Wheels . | . . . . . Hover . | . . . . . Flight . | . . . . . Fastest Speed 50 | 50 120 160 160 160 Average Speed 157 | 146 157 160 160 160 Slowest Speed 160 | 160 160 160 160 160 Overloaded Moves . | . . . . . Propulsion Burnouts . | . . . . . Robots Hopped . | . . . . . Cave-ins Triggered . | . . . . . Exploration Rate (%) 45 | 5 55 46 73 50 Regions Visited 4 Branch Regions 3 Pre-discovered Areas 3 | . . 1 1 1 Known Exits Taken 3 | . 1 1 1 . Unknown Exits Taken 1 | 1 . . . . Scrap Searched 3 | . . 2 . 1 Spaces Dug . | . . . . . Terrain Destroyed 56 | . 50 . . 6 Melee . | . . . . . Projectile 6 | . . . . 6 AOE 50 | . 50 . . . Terrain Rammed . | . . . . . Walls Destroyed . | . . . . . Machines Disabled . | . . . . . Actions | -11 -10 -10 -10 -9 --------- Run | Yrd Mat Min Exi Min Total 1733 | 176 603 272 462 220 Wait 17 | . 5 5 2 5 Move 1568 | 149 517 249 460 193 Hop . | . . . . . Pick Up 38 | 12 26 . . . Fast Attach 4 | 1 3 . . . Attach 12 | 6 2 . . 4 Detach . | . . . . . Swap 11 | . 11 . . . Drop 17 | . 17 . . . Fire 65 | 8 22 17 . 18 Melee . | . . . . . Ram . | . . . . . Kick . | . . . . . Crush 1 | . . 1 . . Escape Stasis . | . . . . . Rewire . | . . . . . Trap . | . . . . . Miscellaneous . | . . . . . Route ------- -11/Scrapyard -10/Materials (discovered 2 exits: *Mat / *Min) -10/Mines (discovered 3 exits: *Mat x2 / *Exi) -10/Exiles (discovered 2 exits: *Min x2) -9/Mines (discovered 2 exits: *Mat x2) History --------- Turn | Location | Event 4 | -11/Scrapyard | Discovered new exit (range 15) 263 | -11/Scrapyard | Entered Materials 309 | -10/Materials | Build established: Mutant 961 | -10/Materials | Discovered new exit (range 9) 1001 | -10/Materials | Identified exit to Mines 1079 | -10/Materials | Discovered new exit (range 10) 1092 | -10/Materials | Identified exit to Materials 1205 | -10/Materials | Entered Mines 1286 | -10/Mines | Discovered exit to Materials (range 8) 1289 | -10/Mines | Learned location of Storage (-8) 1436 | -10/Mines | Discovered exit to Materials (range 9) 1652 | -10/Mines | Deemed a non-threat by the Exiles lab entrance 1653 | -10/Mines | Discovered new exit (range 5) 1658 | -10/Mines | Identified exit to Exiles 1661 | -10/Mines | Entered Exiles 1694 | -10/Exiles | Discovered new exit (range 14) 1713 | -10/Exiles | Identified exit to Mines 1751 | -10/Exiles | Met 8R-AWN 1772 | -10/Exiles | Met EX-HEX 1871 | -10/Exiles | Met EX-DEC 1932 | -10/Exiles | Learned location of Zion (-7) 1999 | -10/Exiles | Discovered exit to Mines (range 12) 2124 | -10/Exiles | Met EX-BIN 2171 | -10/Exiles | Aligned with FarCom system 2172 | -10/Exiles | Given EX-Vault access code 2399 | -10/Exiles | Entered Mines 2446 | -9/Mines | Discovered new exit (range 8) 2455 | -9/Mines | Identified exit to Materials 2696 | -9/Mines | Discovered exit to Materials (range 12) 2720 | -9/Mines | Core integrity fell below 50% 2726 | -9/Mines | Core integrity fell below 20% 2755 | -9/Mines | Lost 3 parts (2n1w) 2766 | -9/Mines | Destroyed by G-34 Mercenary with Small Laser Last Messages --------------- Found Imp. Light Cannon. Found EMP Blaster. Found Field Recycling Unit. Found 36 Matter. EXIT=FOUND: MATERIALS G-34 Mercenary suffers critical hit (Burn). Beam Rifle severed. Lgt. Treads destroyed. Beam Rifle destroyed. Lgt. Treads destroyed. L-31 Rogue Imp. Ion Engine blasted off. L-31 Rogue knocked back. L-31 Rogue destroyed. G-34 Mercenary Aluminum Leg blasted off. G-34 Mercenary destroyed. Overheating: Signal Interpreter damaged (-11). Overheating: System interference. Imp. Light Cannon temporarily disabled. Signal Interpreter temporarily disabled. Overheating: Energy bleed (-44). Map ----- +----------------------------------------------------+ | | | ???????????????????????????????????????????? | | ???????????????????????????????????????????? | | ???????????????????????????????????????????? | | ???????????????????????????????????????????? | | ???????????????????????????????????????????? | | ???????????????????????????????????????????? | | ???????????????????????????????????????????? | | ???????????????????????????????????????????? | | ???????????????????????????????????????????? | | ???????????????????????????????????????????? | | ????????????????????? ???????????????????? | | ????????????????????? ?????????????????? | | ????????????????????? ?????????????????? | | ???????????????????## ??????????????????? | | ??????????????????## ??????????????????? | | ??????????????????? ???????????????????? | | ??????????????????? ???????????????????? | | ??????????????????? #???????????????????? | | ???????????????????# #???????????????????? | | ???????????????????# ##??????????????????? | | ??????????????????## ##?????????????????? | | ??????????????????# #?????????????????? | | ?????????????????## #?????????????????? | | ?????????????????# #?????????????????? | | ?????????????????#=@% #?????????????????? | | ?????????????????#/*! % ##?????????????????? | | ???????????????? ;#%g #??????????????????? | | ??????????????? ##%## #??????????????????? | | ??????? ## ## #??????????????????? | | ??????? ;####??????????????? | | ??????? < # ;## ##?????????????? | | ?????????? ???#k### #?????????????? | | ?????????## #????# ??# #?????????????? | | ??????????# ?????# ??## ;#?????????????? | | ??????????#??????# ???## # ?????????????? | | ????????????????? ????# #? ????????????? | | ?????????????????##????# ##?????????????? | | ???????????????????????## #?????????????? | | ????????????????????????# #?????????????? | | ????????????????????????#!]###?????????????? | | ????????????????????????#%]#???????????????? | | ????????????????????????#[ #???????????????? | | ????????????????????????# #???????????????? | | ????????????????????????# #???????????????? | | ????????????????????????# #???????????????? | | ????????????????????????# #?????####??????? | | ????????????????????????# #????## ##?????? | | ????????????????????????# #???## #?????? | | ????????????????????????# #???# #?????? | +----------------------------------------------------+ Best States ------------- Heat Dissipation 25 Energy Generation 14 Energy Capacity 280 Matter Stores 300 Matter Capacity 300 Sight Range 16 Terrain Scan Range 16 Terrain Scan Density 10 Evasion (%) 55 Recoil Reduction 2 Item Schematics ----------------- None Robot Schematics ------------------ None Fabricated ------------ Nothing Alien Tech Used ----------------- None Achievements -------------- Everything Is Under Control Librarian Tourist Challenges ------------ None Game ------ Seed LightCryofiberDisintegrator Manual? 0 Play Time 00:32:59 Cumulative 2.3 hours Start 2024.03.30 @ 18:07:54 End 2024.03.30 @ 18:43:39 Sessions 1 Manual Loads 0 Difficulty Rogue Special Mode None Game No. 6 Rogue 6 Adventurer 0 Explorer 0 Win Type - Total 0 Types 0/0/0/0/0/0/0/0/0 Lore% 6 Gallery% 5 Achievement% 5 Wizard Run 0 Options --------- Layout 1 ASCII 0 Keyboard 0 Movement Mouse Keybinds 0 Fullscreen 1 Font 24/Smallcaps Map View 50x35 Zoom Use 0% Tactical HUD 0 Map Filters NONE Filters NONE Steam 1 RUN: 8cf8c19c-56fc-4782-b7ad-e8c69ae4f19d